[Event "44th Chess Olympiad Open 2022"]
[Site "Chennai"]
[Date "2022.08.08"]
[Round "10.48"]
[White "Rodriguez Santiago, Jaime"]
[Black "Berend, Elvira"]
[Result "0-1"]
[WhiteElo "2067"]
[BlackElo "2333"]
[Annotator "RC"]
[PlyCount "66"]
[EventDate "2022.??.??"]
[TimeControl "60"]

1. c4 {[%emt 0:00:04]} e5 {[%emt 0:00:10]} 2. Nc3 {[%emt 0:00:04]} Nf6 {
[%emt 0:00:10]} 3. g3 {[%emt 0:00:18]} Bb4 {[%emt 0:00:26]} 4. Bg2 {[%emt 0:00:
00]} O-O {[%emt 0:00:16]} 5. e3 {[%emt 0:00:57]} Bxc3 {[%emt 0:11:20]} 6. bxc3
{[%emt 0:00:35]} d6 {[%emt 0:03:20]} 7. Ne2 {[%emt 0:00:20]} Nc6 {[%emt 0:00:
00]} 8. d4 {[%emt 0:02:12]} Re8 {[%emt 0:15:25]} 9. O-O {[%emt 0:00:36]} e4 {
[%emt 0:02:45]} 10. Nf4 {[%emt 0:16:26]} Na5 {[%emt 0:07:52]} 11. Qa4 {[%emt 0:
00:00]} b6 {[%emt 0:01:21]} 12. c5 {[%emt 0:02:05]} d5 {[%emt 0:02:22]} 13. f3
{[%emt 0:05:41]} c6 {[%emt 0:05:36]} 14. cxb6 {[%emt 0:09:48]} axb6 {[%emt 0:
00:00]} 15. Re1 {[%emt 0:02:05]} exf3 {[%emt 0:03:10]} 16. Bxf3 {[%emt 0:00:41]
} Bf5 {[%emt 0:00:19]} 17. Qb4 {[%emt 0:09:27]} Nc4 {[%emt 0:01:36]} 18. a4 {
[%emt 0:01:08]} h6 {[%emt 0:02:12]} 19. Ra2 {[%emt 0:01:21]} Qd7 {[%emt 0:00:
00]} 20. Ng2 {[%emt 0:05:34]} Bg4 {[%emt 0:02:00]} 21. Bxg4 {[%emt 0:02:02]}
Qxg4 {[%emt 0:00:07]} 22. Rf2 {[%emt 0:00:10]} Ne4 {[%emt 0:00:35]} 23. Rf4 {
[%emt 0:00:51]} Qd7 {[%emt 0:00:09]} 24. Ref1 {[%emt 0:00:33]} f6 {[%emt 0:00:
00]} 25. Rf5 {[%emt 0:05:35]} Qa7 {[%emt 0:02:24]} 26. Qb1 {[%emt 0:06:28]}
Qxa4 {[%emt 0:02:05]} 27. Qd3 {[%emt 0:01:09]} Qb3 {[%emt 0:00:29]} 28. Qe2 {
[%emt 0:00:33]} Ncd6 {[%emt 0:07:53]} 29. Rh5 {[%emt 0:01:41]} Nf7 {[%emt 0:00:
00]} 30. Qg4 {[%emt 0:05:49]} Qc2 {[%emt 0:08:06]} 31. Qg6 {[%emt 0:04:15]} Ra2
{[%emt 0:01:15]} 32. Nf4 {[%emt 0:00:49]} Nxc3 {[%emt 0:01:37]} 33. e4 {
[%emt 0:03:53]} Ne2+ {[%emt 0:01:28]} 0-1

[Event "44th Chess Olympiad Open 2022"]
[Site "Chennai"]
[Date "2022.08.08"]
[Round "10.48"]
[White "Pinales Roussel, Gabriel"]
[Black "Gengler, Pierre"]
[Result "1-0"]
[WhiteElo "1973"]
[BlackElo "2194"]
[Annotator "NA RC"]
[PlyCount "95"]
[EventDate "2022.??.??"]
[TimeControl "60"]

1. Nf3 {[%emt 0:00:03]} g6 {[%emt 0:00:11]} 2. e4 {[%emt 0:01:03]} Bg7 {
[%emt 0:00:12]} 3. d4 {[%emt 0:00:14]} d6 {[%emt 0:00:24]} 4. Bc4 {[%emt 0:00:
00]} Nf6 {[%emt 0:00:56]} 5. Qe2 {[%emt 0:00:07]} O-O {[%emt 0:03:19]} 6. h3 {
[%emt 0:01:11]} c6 {[%emt 0:01:48]} 7. e5 {[%emt 0:01:34]} Nd5 {[%emt 0:01:18]}
8. O-O {[%emt 0:00:38]} b5 {[%emt 0:09:57]} 9. Bb3 {[%emt 0:04:51]} a5 {
[%emt 0:04:44]} 10. Rd1 {[%emt 0:01:04]} Nb6 {[%emt 0:01:15]} 11. c3 {[%emt 0:
00:00]} Na6 {[%emt 0:01:38]} 12. Bg5 {[%emt 0:06:06]} d5 {[%emt 0:09:28]} 13.
Bc2 {[%emt 0:04:03]} Ra7 {[%emt 0:04:35]} 14. Bd3 {[%emt 0:03:18]} f6 {[%emt 0:
00:00]} 15. exf6 {[%emt 0:06:38]} exf6 {[%emt 0:00:05]} 16. Bh4 {[%emt 0:00:05]
} Re7 {[%emt 0:00:17]} 17. Qc2 {[%emt 0:00:35]} Rfe8 {[%emt 0:01:49]} 18. Nbd2
{[%emt 0:01:03]} Nc4 {[%emt 0:00:44]} 19. Nf1 {[%emt 0:04:41]} Nc7 {[%emt 0:00:
00]} 20. a4 {[%emt 0:01:59]} Ne6 {[%emt 0:00:57]} 21. Bg3 {[%emt 0:03:38]} Bh6
{[%emt 0:05:50]} 22. b3 {[%emt 0:03:00]} Nf4 {[%emt 0:00:48]} 23. axb5 {
[%emt 0:13:29]} Nxd3 {[%emt 0:01:16]} 24. bxc4 {[%emt 0:00:21]} dxc4 {[%emt 0:
00:00]} 25. Rxd3 {[%emt 0:01:16]} Bf5 {[%emt 0:00:20]} 26. bxc6 {[%emt 0:00:23]
} Re2 {[%emt 0:07:00]} 27. Qa4 {[%emt 0:10:10]} cxd3 {[%emt 0:01:18]} 28. Qc4+
{[%emt 0:01:01]} Kh8 {[%emt 0:01:09]} 29. Rd1 {[%emt 0:01:32]} Be4 {[%emt 0:00:
00]} 30. Rxd3 {[%emt 0:01:10]} Bxd3 {[%emt 0:00:06]} 31. Qxd3 {[%emt 0:00:04]}
Qa8 {[%emt 0:02:55]} 32. c7 {[%emt 0:11:17]} R2e7 {[%emt 0:04:24]} 33. d5 {
[%emt 0:01:46]} a4 {[%emt 0:00:47]} 34. Qb5 {[%emt 0:02:24]} a3 {[%emt 0:00:52]
} 35. Nd4 {[%emt 0:00:12]} a2 {[%emt 0:01:08]} 36. Nb3 {[%emt 0:00:09]} Qc8 {
[%emt 0:01:38]} 37. Qc6 {[%emt 0:06:54]} Qd7 {[%emt 0:01:23]} 38. Qc4 {[%emt 0:
00:00]} Ra8 {[%emt 0:01:12]} 39. d6 {[%emt 0:00:49]} Rg7 {[%emt 0:02:23]} 40.
Qd5 {[%emt 0:03:53]} Rc8 {[%emt 0:00:33]} 41. Qa5 {[%emt 0:03:30]} Rgg8 {
[%emt 0:09:36]} 42. Qxa2 {[%emt 0:00:08]} Bf8 {[%emt 0:05:58]} 43. Nc5 {
[%emt 0:03:32]} Qc6 {[%emt 0:00:31]} 44. Qe6 {[%emt 0:02:53]} Bxd6 {[%emt 0:00:
00]} 45. Qxf6+ {[%emt 0:00:56]} Rg7 {[%emt 0:00:49]} 46. Bxd6 {[%emt 0:00:07]}
h6 {[%emt 0:01:39]} 47. Ne6 {[%emt 0:01:19]} Rcxc7 {[%emt 0:04:59]} 48. Bxc7 {
[%emt 0:00:17]} 1-0

[Event "44th Chess Olympiad Open 2022"]
[Site "Chennai"]
[Date "2022.08.08"]
[Round "10.49"]
[White "Lee, Jun Hyeok"]
[Black "Oatlhotse, Providence"]
[Result "1-0"]
[WhiteElo "2390"]
[BlackElo "2204"]
[Annotator "RC"]
[PlyCount "55"]
[EventDate "2022.??.??"]
[TimeControl "60"]

1. e4 {[%emt 0:00:11]} g6 {[%emt 0:00:56]} 2. d4 {[%emt 0:00:07]} Bg7 {[%emt 0:
00:00]} 3. Nf3 {[%emt 0:00:41]} d6 {[%emt 0:00:10]} 4. Be3 {[%emt 0:00:06]} Nf6
{[%emt 0:01:56]} 5. Nc3 {[%emt 0:00:06]} O-O {[%emt 0:03:31]} 6. Qd2 {[%emt 0:
00:00]} a6 {[%emt 0:04:31]} 7. Bh6 {[%emt 0:00:08]} b5 {[%emt 0:01:12]} 8. Bd3
{[%emt 0:00:04]} Bb7 {[%emt 0:07:41]} 9. e5 {[%emt 0:01:00]} Nfd7 {[%emt 0:00:
00]} 10. h4 {[%emt 0:06:14]} dxe5 {[%emt 0:08:18]} 11. h5 {[%emt 0:00:49]} Bh8
{[%emt 0:07:44]} 12. hxg6 {[%emt 0:01:01]} hxg6 {[%emt 0:01:14]} 13. Bxf8 {
[%emt 0:01:53]} Qxf8 {[%emt 0:02:39]} 14. dxe5 {[%emt 0:08:28]} Bxe5 {[%emt 0:
00:00]} 15. O-O-O {[%emt 0:02:18]} Bg7 {[%emt 0:02:30]} 16. Be4 {[%emt 0:04:21]
} c6 {[%emt 0:02:47]} 17. Qf4 {[%emt 0:01:56]} f5 {[%emt 0:06:14]} 18. Qh2 {
[%emt 0:05:49]} Nf6 {[%emt 0:21:47]} 19. Ng5 {[%emt 0:02:48]} Bc8 {[%emt 0:00:
00]} 20. Nd5 {[%emt 0:03:24]} Nh5 {[%emt 0:04:39]} 21. Bf3 {[%emt 0:09:46]} e6
{[%emt 0:00:57]} 22. Bxh5 {[%emt 0:04:07]} cxd5 {[%emt 0:01:14]} 23. Bxg6 {
[%emt 0:01:20]} Qe7 {[%emt 0:02:19]} 24. f4 {[%emt 0:03:28]} Nc6 {[%emt 0:00:
00]} 25. Bf7+ {[%emt 0:00:27]} Kf8 {[%emt 0:00:02]} 26. Qh8+ {[%emt 0:00:12]}
Bxh8 {[%emt 0:00:04]} 27. Rxh8+ {[%emt 0:00:04]} Kg7 {[%emt 0:00:01]} 28. Rg8+
{[%emt 0:00:01]} 1-0

[Event "44th Chess Olympiad Open 2022"]
[Site "Chennai"]
[Date "2022.08.08"]
[Round "10.49"]
[White "Oratile, Kgotlane"]
[Black "Kwon, Sehyun"]
[Result "0-1"]
[WhiteElo "2024"]
[BlackElo "2225"]
[Annotator "NA RC"]
[PlyCount "76"]
[EventDate "2022.??.??"]
[TimeControl "60"]

1. e4 {[%emt 0:00:04]} e5 {[%emt 0:01:14]} 2. Nf3 {[%emt 0:00:16]} Nc6 {
[%emt 0:00:08]} 3. d3 {[%emt 0:00:28]} d5 {[%emt 0:01:40]} 4. exd5 {[%emt 0:00:
00]} Qxd5 {[%emt 0:00:20]} 5. Nc3 {[%emt 0:00:12]} Qd6 {[%emt 0:00:30]} 6. g3 {
[%emt 0:04:31]} Bf5 {[%emt 0:01:44]} 7. Bg2 {[%emt 0:00:18]} Qd7 {[%emt 0:00:
00]} 8. O-O {[%emt 0:09:04]} O-O-O {[%emt 0:00:43]} 9. Be3 {[%emt 0:03:10]} Bh3
{[%emt 0:04:01]} 10. Bxh3 {[%emt 0:13:09]} Qxh3 {[%emt 0:00:17]} 11. Ng5 {
[%emt 0:04:54]} Qd7 {[%emt 0:04:36]} 12. Qf3 {[%emt 0:04:36]} f6 {[%emt 0:00:
00]} 13. Nge4 {[%emt 0:00:12]} f5 {[%emt 0:02:17]} 14. Nc5 {[%emt 0:00:58]}
Bxc5 {[%emt 0:00:41]} 15. Bxc5 {[%emt 0:00:07]} Nf6 {[%emt 0:01:57]} 16. Be3 {
[%emt 0:05:18]} h6 {[%emt 0:12:42]} 17. Qe2 {[%emt 0:05:27]} Rhe8 {[%emt 0:00:
00]} 18. f3 {[%emt 0:06:16]} g5 {[%emt 0:10:58]} 19. Rae1 {[%emt 0:05:57]} Qg7
{[%emt 0:03:17]} 20. Qf2 {[%emt 0:00:40]} Kb8 {[%emt 0:01:33]} 21. a3 {[%emt 0:
00:00]} h5 {[%emt 0:09:33]} 22. Kh1 {[%emt 0:01:41]} Rh8 {[%emt 0:02:49]} 23.
h3 {[%emt 0:06:56]} f4 {[%emt 0:03:46]} 24. Bc1 {[%emt 0:00:37]} Nd4 {[%emt 0:
00:00]} 25. gxf4 {[%emt 0:01:39]} exf4 {[%emt 0:02:30]} 26. Qg2 {[%emt 0:03:35]
} Nf5 {[%emt 0:02:58]} 27. Rg1 {[%emt 0:01:17]} Ng3+ {[%emt 0:01:05]} 28. Kh2 {
[%emt 0:00:05]} Ng4+ {[%emt 0:06:02]} 29. fxg4 {[%emt 0:00:13]} hxg4 {[%emt 0:
00:00]} 30. Qd2 {[%emt 0:01:33]} Rxh3+ {[%emt 0:00:08]} 31. Kg2 {[%emt 0:00:01]
} Rdh8 {[%emt 0:00:27]} 32. Re8+ {[%emt 0:06:10]} Rxe8 {[%emt 0:00:18]} 33. d4
{[%emt 0:00:24]} Qh7 {[%emt 0:01:14]} 34. Kf2 {[%emt 0:01:29]} Ne4+ {[%emt 0:
00:00]} 35. Nxe4 {[%emt 0:00:17]} Qxe4 {[%emt 0:00:04]} 36. Rg2 {[%emt 0:00:52]
} g3+ {[%emt 0:00:58]} 37. Kf1 {[%emt 0:00:13]} Rh1+ {[%emt 0:00:16]} 38. Rg1 {
[%emt 0:00:08]} Qf3+ {[%emt 0:00:09]} 0-1

[Event "44th Chess Olympiad Open 2022"]
[Site "Chennai"]
[Date "2022.08.08"]
[Round "10.49"]
[White "Li, Georgiy"]
[Black "Monnaatsheko, Keletshabile"]
[Result "1-0"]
[WhiteElo "1994"]
[BlackElo "2014"]
[Annotator "NA RC"]
[PlyCount "197"]
[EventDate "2022.??.??"]
[TimeControl "60"]

1. c4 {[%emt 0:00:07]} e6 {[%emt 0:00:25]} 2. Nf3 {[%emt 0:00:49]} d5 {[%emt 0:
00:00]} 3. e3 {[%emt 0:00:35]} Nf6 {[%emt 0:01:33]} 4. Nc3 {[%emt 0:02:04]} Be7
{[%emt 0:02:30]} 5. d4 {[%emt 0:02:17]} O-O {[%emt 0:00:25]} 6. cxd5 {[%emt 0:
00:00]} exd5 {[%emt 0:00:08]} 7. Bd3 {[%emt 0:00:30]} Bg4 {[%emt 0:19:33]} 8.
h3 {[%emt 0:01:52]} Bh5 {[%emt 0:00:25]} 9. Qb3 {[%emt 0:03:57]} Nc6 {[%emt 0:
00:00]} 10. a3 {[%emt 0:01:04]} Na5 {[%emt 0:08:48]} 11. Qc2 {[%emt 0:00:50]}
Bg6 {[%emt 0:00:29]} 12. Ne5 {[%emt 0:03:08]} Bxd3 {[%emt 0:04:21]} 13. Nxd3 {
[%emt 0:01:05]} Nc4 {[%emt 0:00:43]} 14. O-O {[%emt 0:02:19]} Re8 {[%emt 0:00:
00]} 15. b3 {[%emt 0:03:29]} Nd6 {[%emt 0:02:14]} 16. Nc5 {[%emt 0:01:33]} Qc8
{[%emt 0:04:01]} 17. Bb2 {[%emt 0:00:33]} b6 {[%emt 0:05:32]} 18. Nd3 {[%emt 0:
00:00]} Qf5 {[%emt 0:00:54]} 19. Rac1 {[%emt 0:01:07]} Nde4 {[%emt 0:03:09]}
20. Ne5 {[%emt 0:02:28]} Bd6 {[%emt 0:07:10]} 21. Nb5 {[%emt 0:01:57]} a6 {
[%emt 0:02:13]} 22. Nxd6 {[%emt 0:13:09]} cxd6 {[%emt 0:00:03]} 23. Nc6 {
[%emt 0:01:00]} Qh5 {[%emt 0:02:37]} 24. Nb4 {[%emt 0:06:38]} g5 {[%emt 0:00:
00]} 25. f3 {[%emt 0:00:51]} Ng3 {[%emt 0:00:56]} 26. Rfe1 {[%emt 0:00:43]} a5
{[%emt 0:07:33]} 27. Nd3 {[%emt 0:01:27]} Rac8 {[%emt 0:01:26]} 28. Qf2 {
[%emt 0:01:50]} Qh4 {[%emt 0:00:56]} 29. Bc3 {[%emt 0:09:43]} g4 {[%emt 0:00:
00]} 30. Kh2 {[%emt 0:02:16]} gxf3 {[%emt 0:01:16]} 31. gxf3 {[%emt 0:00:41]}
Nf5 {[%emt 0:03:13]} 32. Qxh4 {[%emt 0:02:15]} Nxh4 {[%emt 0:00:01]} 33. Kg3 {
[%emt 0:00:49]} Nf5+ {[%emt 0:00:25]} 34. Kf2 {[%emt 0:01:30]} h6 {[%emt 0:00:
00]} 35. b4 {[%emt 0:06:04]} axb4 {[%emt 0:02:37]} 36. Bxb4 {[%emt 0:00:29]}
Rc4 {[%emt 0:00:12]} 37. Bd2 {[%emt 0:02:26]} Rec8 {[%emt 0:00:18]} 38. Nb4 {
[%emt 0:04:01]} b5 {[%emt 0:01:52]} 39. Nd3 {[%emt 0:02:37]} Rc2 {[%emt 0:00:
00]} 40. Rxc2 {[%emt 0:01:27]} Rxc2 {[%emt 0:00:02]} 41. Re2 {[%emt 0:30:52]}
Kf8 {[%emt 0:31:17]} 42. Be1 {[%emt 0:00:46]} Rxe2+ {[%emt 0:01:14]} 43. Kxe2 {
[%emt 0:00:15]} Ke7 {[%emt 0:00:52]} 44. Nf4 {[%emt 0:04:07]} Kd7 {[%emt 0:00:
00]} 45. Kd3 {[%emt 0:00:00]} Ne7 {[%emt 0:00:00]} 46. Bh4 {[%emt 0:00:00]}
Nfg8 {[%emt 0:00:00]} 47. Bf2 {[%emt 0:00:00]} Kc6 {[%emt 0:00:00]} 48. Ne2 {
[%emt 0:00:00]} Nc8 {[%emt 0:00:00]} 49. Kc3 {[%emt 0:00:00]} Kb6 {[%emt 0:00:
00]} 50. Kb4 {[%emt 0:00:00]} Nge7 {[%emt 0:00:00]} 51. Nf4 {[%emt 0:00:00]}
Nc6+ {[%emt 0:00:00]} 52. Kc3 {[%emt 0:00:00]} N8e7 {[%emt 0:00:00]} 53. Bh4 {
[%emt 0:00:00]} Ka5 {[%emt 0:00:00]} 54. Kb3 {[%emt 0:00:00]} Ka6 {[%emt 0:00:
00]} 55. Bf6 {[%emt 0:00:00]} Na5+ {[%emt 0:00:00]} 56. Kc3 {[%emt 0:00:00]}
Nac6 {[%emt 0:02:17]} 57. e4 {[%emt 0:00:00]} dxe4 {[%emt 0:01:44]} 58. fxe4 {
[%emt 0:00:00]} Nc8 {[%emt 0:02:26]} 59. Bg7 {[%emt 0:00:00]} Nb6 {[%emt 0:00:
00]} 60. Bxh6 {[%emt 0:00:00]} Na4+ {[%emt 0:00:16]} 61. Kd3 {[%emt 0:00:50]}
Nb2+ {[%emt 0:00:09]} 62. Kc2 {[%emt 0:00:12]} Nc4 {[%emt 0:00:07]} 63. Bg7 {
[%emt 0:00:40]} Nxa3+ {[%emt 0:00:35]} 64. Kd3 {[%emt 0:00:35]} Ne7 {[%emt 0:
00:00]} 65. Bf8 {[%emt 0:02:06]} Nc8 {[%emt 0:00:44]} 66. h4 {[%emt 0:00:33]}
b4 {[%emt 0:00:31]} 67. Ne2 {[%emt 0:02:05]} b3 {[%emt 0:00:23]} 68. h5 {
[%emt 0:00:49]} b2 {[%emt 0:00:31]} 69. Nc3 {[%emt 0:00:11]} Nb5 {[%emt 0:00:
00]} 70. Nb1 {[%emt 0:00:46]} Nc7 {[%emt 0:00:01]} 71. h6 {[%emt 0:00:58]} Ne6
{[%emt 0:00:05]} 72. h7 {[%emt 0:00:41]} Nf4+ {[%emt 0:00:02]} 73. Kc2 {
[%emt 0:00:19]} Ng6 {[%emt 0:00:14]} 74. Bg7 {[%emt 0:00:14]} Nce7 {[%emt 0:00:
00]} 75. Bf6 {[%emt 0:01:11]} Nc6 {[%emt 0:00:32]} 76. h8=Q {[%emt 0:00:27]}
Nxh8 {[%emt 0:00:06]} 77. Bxh8 {[%emt 0:00:11]} d5 {[%emt 0:00:11]} 78. exd5 {
[%emt 0:02:35]} Nb4+ {[%emt 0:00:02]} 79. Kxb2 {[%emt 0:00:15]} Nxd5 {[%emt 0:
00:00]} 80. Kb3 {[%emt 0:00:27]} Kb6 {[%emt 0:01:18]} 81. Kc4 {[%emt 0:02:29]}
Kc6 {[%emt 0:00:18]} 82. Nc3 {[%emt 0:00:36]} Nb6+ {[%emt 0:00:14]} 83. Kd3 {
[%emt 0:00:29]} f5 {[%emt 0:00:09]} 84. Ke3 {[%emt 0:00:29]} Kd6 {[%emt 0:00:
00]} 85. Kf4 {[%emt 0:01:47]} Ke6 {[%emt 0:00:05]} 86. Be5 {[%emt 0:00:38]} Nc4
{[%emt 0:01:14]} 87. d5+ {[%emt 0:00:11]} Kd7 {[%emt 0:00:13]} 88. Kxf5 {
[%emt 0:00:12]} Ne3+ {[%emt 0:00:18]} 89. Ke4 {[%emt 0:00:17]} Nc4 {[%emt 0:00:
00]} 90. Kd4 {[%emt 0:01:06]} Nd2 {[%emt 0:00:23]} 91. Bf4 {[%emt 0:00:54]}
Nf3+ {[%emt 0:01:39]} 92. Ke4 {[%emt 0:00:48]} Nh4 {[%emt 0:00:51]} 93. Na4 {
[%emt 0:00:27]} Ng6 {[%emt 0:00:25]} 94. Nc5+ {[%emt 0:00:42]} Ke8 {[%emt 0:00:
00]} 95. d6 {[%emt 0:01:52]} Nf8 {[%emt 0:00:24]} 96. Kd5 {[%emt 0:01:08]} Nh7
{[%emt 0:00:27]} 97. Kc6 {[%emt 0:00:54]} Nf8 {[%emt 0:00:37]} 98. Bh6 {
[%emt 0:01:10]} Ne6 {[%emt 0:00:12]} 99. Nxe6 {[%emt 0:00:30]} 1-0

[Event "44th Chess Olympiad Open 2022"]
[Site "Chennai"]
[Date "2022.08.08"]
[Round "10.49"]
[White "Sabure, Bojosi"]
[Black "Kim, Changhoon"]
[Result "1/2-1/2"]
[WhiteElo "1966"]
[BlackElo "1827"]
[Annotator "NA RC"]
[PlyCount "64"]
[EventDate "2022.??.??"]
[TimeControl "60"]

1. e4 {[%emt 0:00:08]} c5 {[%emt 0:00:04]} 2. b4 {[%emt 0:00:22]} cxb4 {
[%emt 0:00:07]} 3. d4 {[%emt 0:00:35]} d5 {[%emt 0:00:15]} 4. exd5 {[%emt 0:00:
00]} Qxd5 {[%emt 0:01:08]} 5. c4 {[%emt 0:02:28]} bxc3 {[%emt 0:03:06]} 6. Nxc3
{[%emt 0:00:18]} Qa5 {[%emt 0:00:24]} 7. Bd2 {[%emt 0:00:25]} e6 {[%emt 0:00:
00]} 8. Nb5 {[%emt 0:04:14]} Qd8 {[%emt 0:01:48]} 9. Nf3 {[%emt 0:01:05]} Nf6 {
[%emt 0:00:25]} 10. Rc1 {[%emt 0:01:50]} Nc6 {[%emt 0:00:22]} 11. Bd3 {[%emt 0:
00:00]} a6 {[%emt 0:03:35]} 12. Nc3 {[%emt 0:02:47]} Nxd4 {[%emt 0:00:06]} 13.
O-O {[%emt 0:00:29]} Be7 {[%emt 0:00:55]} 14. Nxd4 {[%emt 0:01:43]} Qxd4 {
[%emt 0:00:10]} 15. Be3 {[%emt 0:00:13]} Qd8 {[%emt 0:02:44]} 16. Qc2 {[%emt 0:
00:00]} O-O {[%emt 0:00:16]} 17. Rfd1 {[%emt 0:00:18]} Qa5 {[%emt 0:00:41]} 18.
Ne4 {[%emt 0:00:29]} h6 {[%emt 0:05:29]} 19. Bd4 {[%emt 0:03:18]} Nd5 {[%emt 0:
00:00]} 20. Ba1 {[%emt 0:04:24]} Ba3 {[%emt 0:03:40]} 21. Rb1 {[%emt 0:01:33]}
Bd7 {[%emt 0:00:17]} 22. Qe2 {[%emt 0:03:01]} Qc7 {[%emt 0:14:25]} 23. Bc4 {
[%emt 0:13:09]} Rfd8 {[%emt 0:08:28]} 24. Rb3 {[%emt 0:12:21]} Bf8 {[%emt 0:00:
00]} 25. Bxd5 {[%emt 0:00:46]} exd5 {[%emt 0:00:21]} 26. Nf6+ {[%emt 0:04:23]}
Kh8 {[%emt 0:04:56]} 27. Qd3 {[%emt 0:05:27]} gxf6 {[%emt 0:01:12]} 28. Bxf6+ {
[%emt 0:00:10]} Bg7 {[%emt 0:01:19]} 29. Qd4 {[%emt 0:00:43]} Rg8 {[%emt 0:00:
00]} 30. Rg3 {[%emt 0:00:22]} Bxf6 {[%emt 0:00:12]} 31. Qxf6+ {[%emt 0:02:42]}
Kh7 {[%emt 0:00:04]} 32. Qxf7+ {[%emt 0:02:02]} Kh8 {[%emt 0:00:04]} 1/2-1/2

[Event "44th Chess Olympiad Open 2022"]
[Site "Chennai"]
[Date "2022.08.08"]
[Round "10.50"]
[White "Chinchilla, Alejandro Jose"]
[Black "Giron, Jorge Ernesto"]
[Result "0-1"]
[WhiteElo "2166"]
[BlackElo "2288"]
[Annotator "NA RC"]
[PlyCount "66"]
[EventDate "2022.??.??"]
[TimeControl "60"]

1. e4 {[%emt 0:00:12]} c5 {[%emt 0:00:30]} 2. Nf3 {[%emt 0:00:07]} Nc6 {
[%emt 0:00:08]} 3. Bb5 {[%emt 0:00:31]} g6 {[%emt 0:00:09]} 4. c3 {[%emt 0:00:
00]} Nf6 {[%emt 0:01:50]} 5. Qe2 {[%emt 0:00:25]} Bg7 {[%emt 0:00:14]} 6. d4 {
[%emt 0:00:08]} cxd4 {[%emt 0:00:12]} 7. cxd4 {[%emt 0:00:08]} d5 {[%emt 0:00:
00]} 8. e5 {[%emt 0:00:09]} Ne4 {[%emt 0:00:41]} 9. O-O {[%emt 0:02:30]} O-O {
[%emt 0:05:00]} 10. Bxc6 {[%emt 0:00:40]} bxc6 {[%emt 0:00:06]} 11. Nc3 {
[%emt 0:01:08]} Nxc3 {[%emt 0:01:27]} 12. bxc3 {[%emt 0:00:08]} Qa5 {[%emt 0:
00:00]} 13. Qe3 {[%emt 0:04:02]} Rb8 {[%emt 0:02:57]} 14. Re1 {[%emt 0:01:36]}
Bg4 {[%emt 0:02:45]} 15. h3 {[%emt 0:00:08]} Bxf3 {[%emt 0:01:42]} 16. Qxf3 {
[%emt 0:00:03]} f6 {[%emt 0:00:19]} 17. e6 {[%emt 0:00:55]} g5 {[%emt 0:03:36]}
18. h4 {[%emt 0:01:02]} h6 {[%emt 0:00:27]} 19. g3 {[%emt 0:10:26]} Rb5 {
[%emt 0:02:45]} 20. Kg2 {[%emt 0:11:09]} Qa4 {[%emt 0:02:59]} 21. Qd3 {[%emt 0:
00:00]} c5 {[%emt 0:13:33]} 22. dxc5 {[%emt 0:04:09]} Rxc5 {[%emt 0:03:36]} 23.
Be3 {[%emt 0:01:11]} Ra5 {[%emt 0:05:46]} 24. Bd4 {[%emt 0:00:26]} f5 {[%emt 0:
00:00]} 25. hxg5 {[%emt 0:00:42]} hxg5 {[%emt 0:00:05]} 26. Rab1 {[%emt 0:00:
00]} Qc4 {[%emt 0:06:43]} 27. Qe3 {[%emt 0:05:04]} f4 {[%emt 0:00:26]} 28. gxf4
{[%emt 0:06:57]} Bxd4 {[%emt 0:09:23]} 29. cxd4 {[%emt 0:00:07]} Qc2 {[%emt 0:
00:00]} 30. Qg3 {[%emt 0:01:11]} Qg6 {[%emt 0:00:10]} 31. Re5 {[%emt 0:07:22]}
Rf5 {[%emt 0:03:09]} 32. Rxf5 {[%emt 0:00:25]} Qxf5 {[%emt 0:00:03]} 33. Qh3 {
[%emt 0:00:22]} Qxb1 {[%emt 0:01:01]} 0-1

[Event "44th Chess Olympiad Open 2022"]
[Site "Chennai"]
[Date "2022.08.08"]
[Round "10.50"]
[White "Burgos Figueroa, Carlos E."]
[Black "Garcia Cuestas, Kevin"]
[Result "1-0"]
[WhiteElo "2164"]
[BlackElo "1984"]
[Annotator "NA RC"]
[PlyCount "61"]
[EventDate "2022.??.??"]
[TimeControl "60"]

1. c4 {[%emt 0:00:32]} e5 {[%emt 0:00:15]} 2. Nc3 {[%emt 0:00:14]} Nf6 {
[%emt 0:00:41]} 3. g3 {[%emt 0:00:06]} Bc5 {[%emt 0:00:39]} 4. Bg2 {[%emt 0:00:
00]} c6 {[%emt 0:01:38]} 5. e3 {[%emt 0:01:06]} d5 {[%emt 0:01:13]} 6. cxd5 {
[%emt 0:01:05]} cxd5 {[%emt 0:00:08]} 7. d4 {[%emt 0:00:04]} exd4 {[%emt 0:00:
00]} 8. exd4 {[%emt 0:00:08]} Bb4 {[%emt 0:06:00]} 9. Nge2 {[%emt 0:02:47]} h6
{[%emt 0:05:57]} 10. O-O {[%emt 0:04:04]} O-O {[%emt 0:00:09]} 11. h3 {[%emt 0:
00:00]} Nc6 {[%emt 0:02:08]} 12. a3 {[%emt 0:01:16]} Bxc3 {[%emt 0:03:24]} 13.
Nxc3 {[%emt 0:00:03]} Be6 {[%emt 0:00:20]} 14. Be3 {[%emt 0:01:15]} Qd7 {
[%emt 0:03:15]} 15. Kh2 {[%emt 0:01:01]} Rac8 {[%emt 0:02:03]} 16. Qa4 {
[%emt 0:03:01]} Rfd8 {[%emt 0:04:24]} 17. Rac1 {[%emt 0:04:40]} a5 {[%emt 0:00:
00]} 18. Qb5 {[%emt 0:09:10]} Qe7 {[%emt 0:04:32]} 19. Na4 {[%emt 0:00:38]} Rc7
{[%emt 0:07:19]} 20. Nb6 {[%emt 0:01:02]} Ne8 {[%emt 0:09:17]} 21. Qc5 {
[%emt 0:00:43]} Qxc5 {[%emt 0:05:49]} 22. Rxc5 {[%emt 0:00:11]} Nf6 {[%emt 0:
00:00]} 23. Rfc1 {[%emt 0:03:10]} Re7 {[%emt 0:04:09]} 24. Na4 {[%emt 0:03:59]}
Kf8 {[%emt 0:04:55]} 25. Rb5 {[%emt 0:00:46]} Rb8 {[%emt 0:00:27]} 26. Rxc6 {
[%emt 0:00:33]} Bd7 {[%emt 0:03:54]} 27. Rcb6 {[%emt 0:00:10]} Bxb5 {[%emt 0:
00:00]} 28. Rxb5 {[%emt 0:00:03]} Rd7 {[%emt 0:00:32]} 29. Rxa5 {[%emt 0:00:27]
} Ke7 {[%emt 0:01:53]} 30. Nb6 {[%emt 0:00:27]} Rd6 {[%emt 0:00:09]} 31. Bf4 {
[%emt 0:00:25]} 1-0

[Event "44th Chess Olympiad Open 2022"]
[Site "Chennai"]
[Date "2022.08.08"]
[Round "10.50"]
[White "Morales Carlos"]
[Black "Villanueva, Marcio"]
[Result "1/2-1/2"]
[WhiteElo "2036"]
[BlackElo "2009"]
[Annotator "NA RC"]
[PlyCount "61"]
[EventDate "2022.??.??"]
[TimeControl "60"]

1. Nf3 {[%emt 0:00:15]} Nf6 {[%emt 0:00:10]} 2. c4 {[%emt 0:00:07]} c5 {
[%emt 0:00:08]} 3. Nc3 {[%emt 0:00:05]} Nc6 {[%emt 0:00:13]} 4. g3 {[%emt 0:00:
00]} g6 {[%emt 0:00:07]} 5. Bg2 {[%emt 0:00:07]} Bg7 {[%emt 0:00:07]} 6. O-O {
[%emt 0:00:06]} O-O {[%emt 0:00:06]} 7. d3 {[%emt 0:00:08]} d6 {[%emt 0:00:08]}
8. Rb1 {[%emt 0:00:06]} Rb8 {[%emt 0:00:44]} 9. a3 {[%emt 0:01:09]} Bd7 {
[%emt 0:09:04]} 10. b4 {[%emt 0:00:09]} b6 {[%emt 0:02:39]} 11. Bd2 {[%emt 0:
00:00]} Nd4 {[%emt 0:01:21]} 12. Nxd4 {[%emt 0:01:42]} cxd4 {[%emt 0:00:05]}
13. Nb5 {[%emt 0:00:23]} Bxb5 {[%emt 0:00:10]} 14. cxb5 {[%emt 0:00:08]} Qd7 {
[%emt 0:01:02]} 15. Bc6 {[%emt 0:02:04]} Qh3 {[%emt 0:00:10]} 16. Bg2 {[%emt 0:
00:00]} Qd7 {[%emt 0:00:01]} 17. Qa4 {[%emt 0:01:12]} d5 {[%emt 0:00:19]} 18.
Rbc1 {[%emt 0:00:29]} Rfc8 {[%emt 0:03:56]} 19. Bf4 {[%emt 0:00:05]} Rc3 {
[%emt 0:00:56]} 20. Bxb8 {[%emt 0:13:38]} Qc8 {[%emt 0:01:00]} 21. Bxa7 {
[%emt 0:01:39]} Rxc1 {[%emt 0:00:24]} 22. Rxc1 {[%emt 0:00:06]} Qxc1+ {[%emt 0:
00:00]} 23. Bf1 {[%emt 0:00:09]} Qc7 {[%emt 0:00:21]} 24. Qa6 {[%emt 0:01:08]}
Nd7 {[%emt 0:00:10]} 25. h3 {[%emt 0:00:28]} e6 {[%emt 0:00:13]} 26. Bg2 {
[%emt 0:00:53]} Qc1+ {[%emt 0:00:05]} 27. Bf1 {[%emt 0:00:06]} Qc7 {[%emt 0:00:
00]} 28. Bg2 {[%emt 0:01:32]} Qc1+ {[%emt 0:00:06]} 29. Bf1 {[%emt 0:00:10]}
Qc7 {[%emt 0:00:05]} 30. Bg2 {[%emt 0:00:13]} Qc1+ {[%emt 0:00:45]} 31. Bf1 {
[%emt 0:00:41]} 1/2-1/2